Cogmind - Beta 16 @@@ ROGUE MODE // 2025.10.25 @ 20:17:22 Player: BlobtheGreat Result: Destroyed by G-67 Veteran with Field Laser Performance ------------- Evolutions (6) 3000 Regions Visited (19) 3800 Robots Destroyed (249) 1245 Value Destroyed (8686) 8686 Prototype IDs (38) 760 Alien Tech Used (0) 0 Bonus (3738) 3738 TOTAL SCORE: 21229 Bonus ------- High Alert Combat Kills 841 Follower Combat Kills 2737 Network Hubs Disabled 200 Registered with UFD 300 Built Enhanced Grunts 300 A7 Reached Mainframe 300 Met R17 at Cetus 500 Friendly Fire -1440 Cogmind --------- Core Integrity 0/1150 Matter 36/300 Energy 100/100 System Corruption 9% Temperature Cool (9) Movement Core (50) Location -4/Factory Parts ------- > --- POWER (2) -------- (None) > --- PROPULSION (5) --- (None) > --- UTILITY (8) ------ (None) > --- WEAPON (4) ------- (None) > --- INVENTORY (5) ---- Enhanced Flexi-carbon Leg Myomer Leg Experimental Terrain Scan Processor Advanced Melee Analysis Suite Microactuators Peak State ------------ > --- POWER ------------ Cooled Deuterium Engine Quantum Reactor > --- PROPULSION ------- Flexi-carbon Leg Armored Leg Multireflex Exoskeleton Thunder Leg > --- UTILITY ---------- High-capacity Storage Unit Enhanced Optical Array Improved Sensor Array Advanced Signal Interpreter Advanced Melee Analysis Suite Core Analyzer Centrium Medium Armor Plating > --- WEAPON ----------- Hellfire Missile Launcher Improved Remote Datajack Ripper > --- INVENTORY -------- Neutrino Core Improved VSS Leg Multireflex Exoskeleton Enhanced Flexi-carbon Leg Myomer Leg Large Storage Unit IFF Parser Experimental Terrain Scan Processor Advanced Melee Analysis Suite Advanced Melee Analysis Suite Microactuators Nanoactuators Nanoactuators Transmission Jammer Cloaking Device Centrium Medium Armor Plating Improved Shield Generator Ripper DRS Beacon [Rating: 104] Favorites ----------- Power Heavy Ion Engine Engine Heavy Ion Engine Power Core Light Nuclear Core Reactor Quantum Reactor Propulsion Light Treads Treads Light Treads Leg Improved Carbon-fiber Leg Hover Unit Aerolev Unit Utility Core Analyzer Device Improved Heat Sink Storage Huge Storage Unit Processor Core Analyzer Protection Light Armor Plating Weapon Improved Assault Rifle Energy Gun Heavy Particle Gun Energy Cannon EM Pulse Cannon Ballistic Gun Improved Assault Rifle Ballistic Cannon Hardcell Cannon Launcher Proton Missile Launcher Special Weapon Improved Remote Datajack Slashing Weapon Ripper Build | -11 -10 -10 -9 -9 -9 -8 -8 -8 -8 -8 -6 -6 -6 -6 -6 -5 -5 -5 -4 ------- Run | Yrd Mat Min Mat Min Exi Min Mat Sto Rec Scr Fac Ext Cet Arc Hub Fac Was Fac Fac Slots Evolved 12 | . . . 2 . . . 2 . . . 4 . . . . 2 . . 2 Power 1 | . . . . . . . . . . . 1 . . . . . . . . Propulsion 3 | . . . 1 . . . 1 . . . . . . . . 1 . . . Utility 6 | . . . 1 . . . 1 . . . 3 . . . . . . . 1 Weapon 2 | . . . . . . . . . . . . . . . . 1 . . 1 Parts Attached 163 | 7 6 7 17 4 . 9 24 14 . 10 8 7 5 6 2 3 3 21 10 Power 21 | 1 1 1 1 . . 2 2 1 . . . 4 1 3 1 . . 1 2 Engine 8 | 1 1 1 1 . . . 1 1 . . . . . 1 1 . . . . Core 9 | . . . . . . 2 1 . . . . 4 . . . . . 1 1 Reactor 4 | . . . . . . . . . . . . . 1 2 . . . . 1 Propulsion 44 | 2 . 2 6 . . 3 11 5 . 4 2 1 1 . . 1 . 6 . Treads 27 | 2 . 2 6 . . 3 10 4 . . . . . . . . . . . Leg 16 | . . . . . . . 1 . . 4 2 1 1 . . 1 . 6 . Wheel . | . . . . . . . . . . . . . . . . . . . . Hover 1 | . . . . . . . . 1 . . . . . . . . . . . Flight . | . . . . . . . . . . . . . . . . . . . . Utility 59 | 2 3 2 6 2 . 2 7 2 . 6 5 1 2 2 . 1 1 11 4 Device 27 | 1 1 . 1 1 . 1 2 1 . 3 2 1 . 2 . 1 . 7 3 Storage 7 | 1 2 . 1 . . . . . . 1 . . . . . . . 1 1 Processor 10 | . . . . . . . 2 . . 1 3 . . . . . 1 3 . Hackware . | . . . . . . . . . . . . . . . . . . . . Protection 15 | . . 2 4 1 . 1 3 1 . 1 . . 2 . . . . . . Artifact . | . . . . . . . . . . . . . . . . . . . . Weapon 39 | 2 2 2 4 2 . 2 4 6 . . 1 1 1 1 1 1 2 3 4 Energy Gun 5 | 1 . . . . . . 2 2 . . . . . . . . . . . Energy Cannon 7 | . . . . 2 . . 1 . . . 1 . . . . . 1 2 . Ballistic Gun 12 | 1 2 1 3 . . 2 1 2 . . . . . . . . . . . Ballistic Cannon 3 | . . . . . . . . . . . . . . . 1 . . . 2 Launcher 5 | . . 1 . . . . . 2 . . . . 1 . . . 1 . . Special Weapon 3 | . . . . . . . . . . . . 1 . . . . . 1 1 Impact Weapon . | . . . . . . . . . . . . . . . . . . . . Slashing Weapon 4 | . . . 1 . . . . . . . . . . 1 . 1 . . 1 Piercing Weapon . | . . . . . . . . . . . . . . . . . . . . Special Melee Weapon . | . . . . . . . . . . . . . . . . . . . . Unidentified Prototypes 20 | . . . 2 . . . 1 5 . . 1 . 1 . 2 . 1 6 1 Corrupted Parts 3 | . . . . . . . . . . . . . . 2 . . . 1 . System Corruption 28 | . . . . . . . . . . . . . . 19 . . . 9 . Parts Lost 52 | . 4 1 4 . . 2 9 1 . . . 1 1 . . . . 12 17 Power 10 | . 1 . . . . . 2 . . . . . 1 . . . . 2 4 Propulsion 14 | . . . . . . 2 4 1 . . . . . . . . . 4 3 Utility 19 | . 1 1 4 . . . 3 . . . . 1 . . . . . 3 6 Weapon 9 | . 2 . . . . . . . . . . . . . . . . 3 4 Highest Loss Streak 11 | . 2 1 1 . . 2 3 1 . . . 1 1 . . . . 8 11 To Critical Strikes . | . . . . . . . . . . . . . . . . . . . . Average Backups 18 | 4 10 9 18 20 19 19 22 24 24 22 12 13 13 12 13 12 13 13 15 Power 1 | . 1 1 1 1 2 3 3 2 1 1 1 1 1 1 2 2 1 . 1 Propulsion 3 | 3 4 4 2 2 2 1 2 4 4 2 2 3 3 3 3 3 3 3 2 Utility 8 | . 1 2 4 6 7 7 10 13 13 12 5 6 5 5 5 6 7 8 10 Weapon 4 | . 2 2 9 10 8 8 5 5 6 5 2 1 3 3 2 1 1 . . Tool/Special . | . . . . . . . . . . . . . . . . . . . . Unused Backups 51 | . . 4 5 . . . 2 3 . 16 5 2 1 . . . . 4 9 Power 6 | . . 1 . . . . . 2 . 2 . . . . . . . 1 . Propulsion 10 | . . 3 1 . . . . . . 1 3 . . . . . . . 2 Utility 23 | . . . . . . . . . . 10 2 2 1 . . . . 1 7 Weapon 12 | . . . 4 . . . 2 1 . 3 . . . . . . . 2 . Tool/Special . | . . . . . . . . . . . . . . . . . . . . Average Slot Usage (%) 93 | . 98 99 98 100 100 99 93 99 95 83 93 92 92 89 93 92 94 92 67 Engine 7 | . 13 14 10 11 11 1 . 9 9 9 6 1 . . 6 5 5 5 3 Core 2 | . . . . . . 9 8 . . . 6 11 9 . . . . . 3 Treads 20 | . 27 28 33 33 33 32 29 35 36 19 . . . . . . . . . Leg 9 | . . . . . . . 1 . . 16 22 20 20 20 20 22 23 22 18 Device 8 | . 13 1 8 11 11 11 6 8 9 5 12 15 14 12 13 12 11 8 10 Storage 8 | . 14 14 11 11 11 11 9 9 9 9 6 6 6 6 6 5 5 5 4 Processor 10 | . . . . . . . 11 9 9 12 19 20 20 20 20 17 17 20 18 Protection 7 | . . 12 12 11 11 11 7 8 9 7 6 3 4 3 6 3 4 3 . Energy Gun 1 | . 13 . . . . . 1 5 6 . . . . . . . . . . Energy Cannon 2 | . . . . 14 22 1 2 . . . 3 6 3 . . . 3 1 . Ballistic Gun 7 | . 14 27 21 7 . 20 11 10 6 . . . . . . . . . . Slashing Weapon 3 | . . . . . . . 1 1 . 3 6 5 6 12 12 16 11 10 . Peak Build Rating 104 | 7 8 10 21 24 23 27 33 36 33 44 63 73 80 83 80 89 96 104 102 Average Rating 40 | 6 7 8 17 21 22 26 29 32 31 31 58 67 76 78 78 86 92 94 79 On Entrance 44 | . 7 7 10 20 23 23 27 31 33 25 38 63 72 80 78 79 89 94 81 Avg Prop Armor Cover (%) 3 | . . . . . . . 3 . . . . . . . . . . . . Naked Turns 50 | . . . . . . . . . . . . . . . . . . . 50 Heaviest Build 111 | 13 30 35 100 104 103 106 105 103 98 96 55 66 69 69 59 62 79 98 111 Greatest Support 107 | 40 40 40 60 60 60 62 80 83 83 83 72 72 70 67 67 90 90 107 107 Greatest Overweight (x) 2 | . . . 1 1 1 1 2 1 1 1 1 . 1 1 . . . 1 2 Average Overweight (x) . | . . . 1 1 1 1 1 1 1 . . . . . . . . . . Largest Inventory Capacity 25 | 8 15 15 25 25 25 25 25 25 25 25 15 15 15 15 15 15 15 20 25 Average Capacity 20 | 7 12 15 24 25 25 25 25 25 25 24 15 15 15 15 15 15 15 16 18 Most Carried 25 | 7 12 15 25 25 25 25 25 25 25 25 15 15 15 15 15 15 15 20 20 Average Carried 20 | 5 10 13 23 24 24 24 24 24 24 22 14 14 14 14 14 14 14 15 16 Final Capacity 25 | 8 15 15 25 25 25 25 25 25 25 15 15 15 15 15 15 15 15 20 5 Final Carried 25 | 7 9 15 25 25 25 25 25 25 25 15 15 15 15 15 15 15 15 16 5 Scrap Suit Usage (%) 1 | . . . . . . . . . . 1 . . . . . . . . . Class Distribution -------------------- 34% | Scavenger-Mutant 33% | Commander-Mutant 15% | Mutant 7% | Scavenger-Gladiator 4% | Commander-Gladiator 3% | Gladiator Dominant Class ---------------- Mutant | -10/Materials Mutant | -10/Mines Scavenger-Mutant | -9/Materials Scavenger-Mutant | -9/Mines Scavenger-Mutant | -9/Exiles Scavenger-Mutant | -8/Mines Scavenger-Mutant | -8/Materials Scavenger-Mutant | -8/Storage Commander-Mutant | -8/Recycling Commander-Mutant | -8/Scraptown Commander-Mutant | -6/Factory Commander-Mutant | -6/Extension Commander-Mutant | -6/Cetus Commander-Gladiator | -6/Archives Commander-Gladiator | -6/Hub_04(d) Commander-Gladiator | -5/Factory Scavenger-Gladiator | -5/Waste Scavenger-Gladiator | -5/Factory Mutant | -4/Factory Resources | -11 -10 -10 -9 -9 -9 -8 -8 -8 -8 -8 -6 -6 -6 -6 -6 -5 -5 -5 -4 ----------- Run | Yrd Mat Min Mat Min Exi Min Mat Sto Rec Scr Fac Ext Cet Arc Hub Fac Was Fac Fac Matter Collected 6546 | 306 208 225 1095 203 . 269 755 713 116 1036 100 90 135 109 47 40 221 749 129 Remotely . | . . . . . . . . . . . . . . . . . . . . Salvage Created 10724 | 132 575 267 1652 514 . 408 1544 1281 371 160 259 346 598 301 285 18 269 1619 125 Parts 589 | 11 30 21 104 28 . 18 82 68 15 8 13 18 21 30 13 4 4 92 9 Haulers Intercepted 18 | . 2 . 3 . . . 5 6 . . 1 . . . . . . 1 . Recyclers Shooed 4 | 1 . . 1 . . . 1 1 . . . . . . . . . . . Parts Field Recycled . | . . . . . . . . . . . . . . . . . . . . Retrieved Matter . | . . . . . . . . . . . . . . . . . . . . Parts Self-Destructed . | . . . . . . . . . . . . . . . . . . . . Prevented . | . . . . . . . . . . . . . . . . . . . . Parts Restored . | . . . . . . . . . . . . . . . . . . . . Kills | -11 -10 -10 -9 -9 -9 -8 -8 -8 -8 -8 -6 -6 -6 -6 -6 -5 -5 -5 -4 ------- Run | Yrd Mat Min Mat Min Exi Min Mat Sto Rec Scr Fac Ext Cet Arc Hub Fac Was Fac Fac Combat Hostiles Destroyed 173 | . 13 8 30 6 . 8 27 18 7 . 1 5 6 . 4 . 1 37 2 Melee 31 | . . . . . . . . 1 . . 1 5 . . 4 . . 19 1 Guns 105 | . 13 6 30 3 . 6 24 17 6 . . . . . . . . . . Cannons 9 | . . . . 3 . 1 3 . . . . . . . . . . 1 1 AOE 20 | . . 2 . . . . . . . . . . . . . . 1 17 . Classes Destroyed 18 | 3 4 1 1 1 . 1 2 . . 1 . . . . 1 . 1 2 . Worker 11 | 1 . . 2 1 . . . 2 . . . . . . 3 . . 2 . Builder 7 | . . . 2 . . . 2 . . . . 1 . . . 1 . 1 . Tunneler 9 | 3 . . 2 3 . . . . . . . . . . . . . . 1 Hauler 18 | . 2 . 3 . . . 5 6 . . 1 . . . . . . 1 . Recycler 7 | 1 . . 1 2 . 1 . 2 . . . . . . . . . . . Operator 11 | . . . . . . . 1 . . . . . . 9 . . . 1 . Watcher 6 | . 2 . 2 . . . . . . . . . 2 . . . . . . Swarmer 34 | . 3 3 4 . . 4 4 3 . . . . . . . . . 13 . Grunt 73 | . 10 3 18 4 . 4 13 10 1 . . 4 . . 1 . . 5 . Brawler 2 | . . . . . . . 1 . 1 . . . . . . . . . . Duelist 5 | . . . . 2 . . 1 . 1 . . . . . . . . 1 . Sentry 33 | . . 2 8 . . . 6 5 4 . 1 . . . 2 . . 4 1 Hunter 6 | . . . . . . 1 2 . . . . 1 . . . . . 2 . Programmer 13 | . . . . . . . . . . . . . . . . . . 12 1 Behemoth 1 | . . . . . . . . . . . . . . . 1 . . . . Compactor 1 | . . . . . . . . . . . . . . . . . 1 . . Cetus Guard 6 | . . . . . . . . . . . . . 6 . . . . . . Scrapoid 3 | . . . . . . . . . . 2 1 . . . . . . . . Thug 1 | . . . . . . . . . . . . . 1 . . . . . . Martyr 2 | . . . . . . . . . . . . . . . . . . 2 . Best Kill Streak 12 | 2 3 3 12 3 . 3 5 5 2 . 1 2 5 3 2 1 1 6 1 Combat Bots Only 6 | . 3 3 5 3 . 3 4 5 2 . 1 2 4 . 1 . 1 6 1 Max Kills in Single Turn 6 | 1 1 2 2 1 . 2 2 1 1 1 1 1 2 1 1 1 1 6 1 Gunslinging 1 | . . . 1 . . . . . . . . . . . . . . . . Exploded 5 | . . 2 . . . . . . . . . . . . . . 1 5 . Melee 1 | . . . . . . . . 1 . . 1 1 . . 1 . . 1 1 Uniques/NPCs Destroyed . | . . . . . . . . . . . . . . . . . . . . Combat | -11 -10 -10 -9 -9 -9 -8 -8 -8 -8 -8 -6 -6 -6 -6 -6 -5 -5 -5 -4 -------- Run | Yrd Mat Min Mat Min Exi Min Mat Sto Rec Scr Fac Ext Cet Arc Hub Fac Was Fac Fac Hostile Shots Fired 1065 | . 54 42 105 52 . 53 158 56 15 . . 37 23 3 30 2 . 241 194 Missed 311 | . 9 10 21 12 . 12 43 16 3 . . 13 11 1 11 1 . 78 70 Deflected 9 | . . . . . . . . . . . . . . . . . . 9 . Hits 754 | . 45 32 84 40 . 41 115 40 12 . . 24 12 2 19 1 . 163 124 Melee 22 | . . . . 8 . . 5 . . . . . . . . . . 7 2 Projectile 732 | . 45 32 84 32 . 41 110 40 12 . . 24 12 2 19 1 . 156 122 Critical Strikes 26 | . 1 2 4 2 . 1 3 . . . . 1 . . . . . 7 5 Part Disruptions 1 | . . . . . . . . . . . . . . . . . . . 1 Damage Taken 12093 | . 496 402 1091 616 . 596 1585 673 197 . 41 512 305 46 152 25 22 2673 2661 Core 2444 | . 101 71 65 88 . 68 286 93 49 . 30 42 23 . 10 . . 352 1166 Absorbed by Shields 781 | . . . . . . . . . . . . 48 61 . . . . 556 116 Regen/Repaired (Parts) 122 | . 57 . . . . . . . . . . . . . . . 41 24 . Core Remaining (%) 58 | 100 . 31 . . . 44 . . . 22 . . . . 87 . . 64 . Volleys Fired 484 | 22 51 23 87 26 . 29 94 70 12 . . 4 14 . . . 9 22 21 Largest 2 | 2 2 2 2 2 . 2 2 2 2 . . 1 1 . . . 1 1 1 Hottest 126 | 70 70 40 46 126 . 126 126 80 80 . . 90 39 . . . 36 88 60 Shots Fired 873 | 34 100 45 174 52 . 56 179 138 24 . . 4 14 . . . 9 22 22 Gun 747 | 34 100 44 174 30 . 48 156 137 24 . . . . . . . . . . Cannon 86 | . . . . 22 . 8 23 . . . . 3 . . . . . 12 18 Launcher 36 | . . 1 . . . . . 1 . . . . 14 . . . 9 8 3 Special 4 | . . . . . . . . . . . . 1 . . . . . 2 1 Kinetic 634 | 12 58 44 174 30 . 48 144 94 12 . . . . . . . . . 18 Thermal 134 | 22 42 . . . . . 12 43 12 . . 3 . . . . . . . Explosive 22 | . . 1 . . . . . 1 . . . . . . . . 9 8 3 Electromagnetic 79 | . . . . 22 . 8 23 . . . . . 14 . . . . 12 . Robot Hit Streak 50 | 10 15 19 50 14 . 10 23 21 8 . . 3 4 . . . 3 4 7 Robot Miss Streak 5 | 3 5 3 3 3 . 2 4 4 1 . . 2 1 . . . 1 5 2 Penetration Max . | . . . . . . . . . . . . . . . . . . . . Secondary Targets 13 | . . 2 5 1 . . 5 . . . . . . . . . . . . Max Gunslinging Chain 1 | . . 1 1 1 . . 1 . . . . . . . . . . . . Shots Hit Robots 758 | 22 73 31 131 34 . 42 144 97 17 4 5 21 4 16 11 1 7 86 12 Core Hits 387 | 5 28 15 63 15 . 17 66 44 7 2 3 10 20 10 8 1 2 56 15 Critical Kills 1 | . . . . . . . 1 . . . . . . . . . . . . Critical Parts Destroyed 1 | . 1 . . . . . . . . . . . . . . . . . . Critical Strikes 27 | 1 4 . . . . . 3 6 1 . . 3 . 1 1 . . 6 1 Burn 13 | 1 3 . . . . . 2 6 1 . . . . . . . . . . Destroy 2 | . 1 . . . . . 1 . . . . . . . . . . . . Blast 1 | . . . . . . . . . . . . . . . . . . . 1 Sever 11 | . . . . . . . . . . . . 3 . 1 1 . . 6 . Melee Attacks 263 | . . . 1 . . . 13 14 . 4 18 29 . 20 15 5 . 141 3 Impact . | . . . . . . . . . . . . . . . . . . . . Slashing 263 | . . . 1 . . . 13 14 . 4 18 29 . 20 15 5 . 141 3 Piercing . | . . . . . . . . . . . . . . . . . . . . Sneak Attacks 39 | . . . . . . . . 3 . 4 3 4 . 9 5 1 . 10 . Combat Hostiles 3 | . . . . . . . . . . . . . . . 1 . . 2 . Follow-up Attacks 11 | . . . . . . . . . . . . . . 1 1 . . 9 . Martial Strikes 15 | . . . . . . . . . . . . . . . . . . 15 . Damage Inflicted 23133 | 276 943 519 2007 684 . 887 2559 1923 356 316 307 907 1357 1111 600 60 1056 5969 1296 Guns 8584 | 276 928 391 1970 356 . 577 2074 1662 350 . . . . . . . . . . Cannons 1413 | . . . . 279 . 185 423 . . . . 31 . . . . . 184 311 Explosions 6014 | . . 111 . 33 . 92 42 . . . . . 1357 . . . 1056 2515 808 Melee 6919 | . . . . . . . . 254 . 316 307 876 . 1111 600 60 . 3253 142 Ramming 203 | . 15 17 37 16 . 33 20 7 6 . . . . . . . . 17 35 Kinetic 7446 | 114 571 391 1970 356 . 577 1860 1142 154 . . . . . . . . . 311 Thermal 2102 | 162 357 . . 33 . 92 256 520 196 . . 31 367 . . . . 88 . Explosive 4385 | . . 111 . . . . . . . . . . . . . . 1056 2427 791 Electromagnetic 2078 | . . . . 279 . 185 423 . . . . . 990 . . . . 184 17 Impact . | . . . . . . . . . . . . . . . . . . . . Slashing 6919 | . . . . . . . . 254 . 316 307 876 . 1111 600 60 . 3253 142 Piercing . | . . . . . . . . . . . . . . . . . . . . Highest Corruption 25 | . . . . . . . 3 6 6 . . . . 10 5 2 2 25 9 Average Corruption 5 | . . . . . . . 2 5 6 . . . . 5 5 1 2 6 2 Corruption Purged 14 | . . . . . . . . . . . . . . 14 . . . . . Corruption Blocked . | . . . . . . . . . . . . . . . . . . . . Effects 196 | . . . . . . . 11 49 40 . . . . 11 6 3 2 70 4 Message Errors 48 | . . . . . . . 3 14 8 . . . . . 2 1 . 20 . Matter Fused 42 | . . . . . . . 2 9 14 . . . . 2 . 2 . 13 . Heat Flow Errors 22 | . . . . . . . 1 5 6 . . . . 4 1 . . 4 1 Energy Discharges 23 | . . . . . . . 2 3 3 . . . . 2 2 . . 10 1 Parts Rejected 2 | . . . . . . . . . . . . . . . . . 1 . 1 Parts Fused 2 | . . . . . . . . 1 1 . . . . . . . . . . Data Loss (minor) 28 | . . . . . . . . 9 4 . . . . 2 . . . 13 . Data Loss (major) 14 | . . . . . . . 2 2 3 . . . . 1 . . . 6 . Misfires 4 | . . . . . . . . 2 . . . . . . . . . 1 1 Alerts 7 | . . . . . . . 1 3 1 . . . . . 1 . 1 . . Misdirections 2 | . . . . . . . . . . . . . . . . . . 2 . Weapon Failures 2 | . . . . . . . . 1 . . . . . . . . . 1 . Overload Shots . | . . . . . . . . . . . . . . . . . . . . Overflow Damage 1115 | . . . . . . . 7 34 . . . 89 30 231 40 . . 629 55 Projectiles 41 | . . . . . . . 7 . . . . . . . . . . . 34 Explosions 449 | . . . . . . . . . . . . . 30 . . . . 398 21 Melee 625 | . . . . . . . . 34 . . . 89 . 231 40 . . 231 . Knockbacks 4 | . . . . . . 1 . . . . . . . . . . . . 3 Impact 1 | . . . . . . 1 . . . . . . . . . . . . . Kinetic 3 | . . . . . . . . . . . . . . . . . . . 3 Secondary . | . . . . . . . . . . . . . . . . . . . . Self-Inflicted Damage 308 | . . 1 . . . . . 34 . . . . 53 . . . . 80 140 Shots 8 | . . 1 . . . . . 1 . . . . 2 . . . . 1 3 Rammed 20 | . 4 6 3 . . 2 3 1 1 . . . . . . . . . . Targets Rammed 28 | . 4 6 4 2 . 2 3 1 1 . . . . . . . . 2 3 Kicked 5 | . . . . . . . . . . . . . . . . . . 2 3 Crushed 3 | . . . 1 2 . . . . . . . . . . . . . . . Highest Temperature 405 | 81 156 34 48 156 . 72 182 399 244 . 405 148 12 272 155 . . 279 178 Average Temperature 59 | 29 33 8 16 52 . 28 52 89 55 . 204 68 6 128 71 . . 87 83 Received Heat Transfer 3031 | . 231 186 531 189 . 225 603 261 81 . 6 157 4 9 36 9 . 272 231 Siege Activations . | . . . . . . . . . . . . . . . . . . . . Martial Activations 16 | . . . . . . . . . . . . 2 . . 1 1 . 12 . Total Turns 289 | . . . . . . . . . . . . 22 . . 14 7 . 246 . Longest Duration 55 | . . . . . . . . . . . . 14 . . 14 7 . 55 . Shielding Activations . | . . . . . . . . . . . . . . . . . . . . Robots Disrupted . | . . . . . . . . . . . . . . . . . . . . Combat Hostiles . | . . . . . . . . . . . . . . . . . . . . Robots Corrupted 9 | . . . . . . 1 1 . . . . . 7 . . . . . . Combat Hostiles 7 | . . . . . . 1 . . . . . . 6 . . . . . . Parts Fried 9 | . . . . 2 . . 1 . . . . 1 4 . . . . 1 . Impact Corruptions . | . . . . . . . . . . . . . . . . . . . . Robots Melted . | . . . . . . . . . . . . . . . . . . . . Combat Hostiles . | . . . . . . . . . . . . . . . . . . . . Parts Melted 13 | . 2 . . . . . 2 3 2 . 1 . . . . . . 3 . Heat Transferred 5016 | 555 1258 . . 50 . 50 642 1480 444 . . 50 387 . . . . 100 . Parts Sabotaged . | . . . . . . . . . . . . . . . . . . . . Parts Stolen . | . . . . . . . . . . . . . . . . . . . . Parts Stripped . | . . . . . . . . . . . . . . . . . . . . Power Chain Reactions 7 | . . . . 1 . 1 1 . . . . . 2 . . . . . 2 Alert | -11 -10 -10 -9 -9 -9 -8 -8 -8 -8 -8 -6 -6 -6 -6 -6 -5 -5 -5 -4 ------- Run | Yrd Mat Min Mat Min Exi Min Mat Sto Rec Scr Fac Ext Cet Arc Hub Fac Was Fac Fac Maximum Alert Level 4 | . . . 2 1 . . 1 . . . 3 2 1 1 3 2 . 4 2 Low Security (%) 71 | 100 100 100 63 93 . 100 90 100 100 . 12 73 2 31 18 . 100 20 . Level 1 9 | . . . 18 6 . . 9 . . . 6 16 97 68 42 43 . 2 . Level 2 15 | . . . 18 . . . . . . . 49 9 . . 29 56 . 52 100 Level 3 4 | . . . . . . . . . . . 31 . . . 9 . . 21 . Level 4 . | . . . . . . . . . . . . . . . . . . 2 . Level 5 . | . . . . . . . . . . . . . . . . . . . . High Security . | . . . . . . . . . . . . . . . . . . . . Max Security . | . . . . . . . . . . . . . . . . . . . . Peak Influence 1318 | 10 147 78 477 234 . 81 225 142 149 . 808 418 386 283 845 481 163 1318 645 Initial 645 | . . 28 . 184 . . . 2 12 . . 298 216 130 49 413 157 . 645 Average 180 | 1 56 15 174 67 . 12 66 46 69 . 565 158 315 216 362 416 68 532 524 Influence Increases 11138 | 25 538 188 940 273 . 269 768 659 542 . 1163 971 360 283 1036 158 142 2388 435 Destroy 0b10 Robot/C 5300 | . 260 160 600 160 . 200 540 360 200 . 520 400 160 80 320 40 . 1260 40 Destroy 0b10 Robot/NC 445 | 25 20 . 60 30 . 5 40 55 . . 10 45 10 45 40 5 . 50 5 Destroy Leader 1132 | . 78 20 170 30 . 40 150 104 . . 104 46 . . 86 20 . 264 20 Allied During Kill 1929 | . . . . 19 . 9 . 20 141 . 410 366 164 125 446 65 . 164 . Successful Hack 233 | . 44 . 17 . . . 6 24 21 . 8 56 9 . . 18 . 30 . Select Force Hacks 320 | . 60 . 30 . . . . . 180 . . . . . 50 . . . . Disable Machine 420 | . . . 15 15 . . . 75 . . 75 15 . 15 45 . . 120 45 Destroy Structure 744 | . 1 8 3 19 . . 17 21 . . 36 13 17 3 34 10 142 320 100 Partial Spotted 30 | . . . . . . . . . . . . 15 . 15 . . . . . Lose Combat Pursuer 585 | . 75 . 45 . . 15 15 . . . . 15 . . 15 . . 180 225 Influence Decreases 10498 | 25 464 262 466 747 . 269 761 635 562 11 552 1194 422 466 334 552 593 1070 1113 Entered New Map 2545 | . . 46 . 290 . . . 5 19 11 . 313 172 196 94 432 294 . 673 Time Decay 5483 | 25 424 206 426 457 . 210 468 420 463 . 292 421 140 230 180 120 159 572 270 Lost Part 520 | . 40 10 40 . . 20 90 10 . . . 10 10 . . . . 120 170 Lost Ally 1127 | . . . . . . 39 . . 80 . 260 180 100 40 60 . 140 228 . Purge Threat 823 | . . . . . . . 203 200 . . . 270 . . . . . 150 . Squads Dispatched 59 | . 4 . 5 . . . 6 4 . . 6 4 . . 5 1 . 18 6 Investigation 20 | . 3 . 3 . . . 1 3 . . 3 2 . . 2 . . 2 1 Extermination 10 | . . . . . . . . . . . 2 . . . . . . 6 2 Reinforcement 23 | . 1 . 2 . . . 5 1 . . 1 2 . . 2 1 . 7 1 Assault 6 | . . . . . . . . . . . . . . . 1 . . 3 2 Garrison . | . . . . . . . . . . . . . . . . . . . . Intercept . | . . . . . . . . . . . . . . . . . . . . Searches Triggered . | . . . . . . . . . . . . . . . . . . . . Construction Impeded 6 | . . . . . . . . 1 . . 1 . . . 1 . . 2 1 Haulers Reinforced . | . . . . . . . . . . . . . . . . . . . . Active Scanning Responses . | . . . . . . . . . . . . . . . . . . . . Cargo Convoy Interrupts . | . . . . . . . . . . . . . . . . . . . . Stealth | -11 -10 -10 -9 -9 -9 -8 -8 -8 -8 -8 -6 -6 -6 -6 -6 -5 -5 -5 -4 --------- Run | Yrd Mat Min Mat Min Exi Min Mat Sto Rec Scr Fac Ext Cet Arc Hub Fac Was Fac Fac Distress Signals 29 | . 2 . 5 . . . 5 4 . . 1 2 . . 1 . . 7 2 Communications Jammed . | . . . . . . . . . . . . . . . . . . . . Distress Signals . | . . . . . . . . . . . . . . . . . . . . Times Spotted 334 | . 27 8 46 9 . 10 44 29 7 . 9 24 10 11 13 2 6 54 25 Peak Tracking Total 14 | . 4 3 6 4 . 3 6 5 5 . 4 5 5 2 4 1 4 8 14 Tactical Retreats 21 | . 2 . 3 . . 1 1 . . . . 1 . . 1 . . 6 6 Traps | -11 -10 -10 -9 -9 -9 -8 -8 -8 -8 -8 -6 -6 -6 -6 -6 -5 -5 -5 -4 ------- Run | Yrd Mat Min Mat Min Exi Min Mat Sto Rec Scr Fac Ext Cet Arc Hub Fac Was Fac Fac Traps Triggered 22 | . 1 . 2 . . . 2 2 . . 1 4 . . . 3 . 2 5 Indirectly 2 | . . . . . . . . . . . . . . . . . . . 2 Trap Hack Attempts . | . . . . . . . . . . . . . . . . . . . . Triggered . | . . . . . . . . . . . . . . . . . . . . Disarmed . | . . . . . . . . . . . . . . . . . . . . Reprogrammed . | . . . . . . . . . . . . . . . . . . . . Reused . | . . . . . . . . . . . . . . . . . . . . Traps Extracted . | . . . . . . . . . . . . . . . . . . . . Installed 1 | . . . . . . . . . . . 1 . . . . . . . . Triggered . | . . . . . . . . . . . . . . . . . . . . Most Traps Carried 5 | . . 5 5 5 5 5 5 . . 1 1 . . . . . . . . Machines | -11 -10 -10 -9 -9 -9 -8 -8 -8 -8 -8 -6 -6 -6 -6 -6 -5 -5 -5 -4 ---------- Run | Yrd Mat Min Mat Min Exi Min Mat Sto Rec Scr Fac Ext Cet Arc Hub Fac Was Fac Fac Machines Disabled 29 | . . . 1 1 . . . 5 . . 5 2 . 1 3 . . 8 3 Max in Single Turn 3 | . . . 1 1 . . . 1 . . . 1 . . . . . 3 2 Garrison Access 3 | . . . . . . . . 1 . . 1 . . . . 1 . . . Network Hub 1 | . . . . . . . . . . . . . . . 1 . . . . Machines Repaired . | . . . . . . . . . . . . . . . . . . . . Machines Dismantled . | . . . . . . . . . . . . . . . . . . . . Machines Sabotaged 1 | . . . . . . . . . . . . . . . 1 . . . . Overloaded Fab Kills . | . . . . . . . . . . . . . . . . . . . . Hacking | -11 -10 -10 -9 -9 -9 -8 -8 -8 -8 -8 -6 -6 -6 -6 -6 -5 -5 -5 -4 --------- Run | Yrd Mat Min Mat Min Exi Min Mat Sto Rec Scr Fac Ext Cet Arc Hub Fac Was Fac Fac Machines Accessed 98 | . 9 . 7 . 1 . 7 15 11 1 10 18 1 . 5 3 . 10 . Terminals 70 | . 6 . 5 . . . 6 13 5 . 5 17 1 . 5 1 . 6 . Fabricators 1 | . . . . . . . . . . . . . . . . . . 1 . Repair Stations 2 | . 1 . . . . . . 1 . . . . . . . . . . . Recycling Units 13 | . 2 . 1 . . . . . 6 . 2 1 . . . . . 1 . Scanalyzers 5 | . . . 1 . . . 1 . . . 2 . . . . . . 1 . Garrison Access 5 | . . . . . . . . 1 . . 1 . . . . 2 . 1 . Total Hacks 237 | . 24 . 19 . 2 . 16 44 20 1 19 48 2 . 9 9 . 24 . Successful 119 | . 17 . 12 . 2 . 11 20 11 1 11 20 1 . 2 5 . 6 . Failed 116 | . 7 . 7 . . . 5 24 9 . 7 28 1 . 7 4 . 17 . Catastrophic 25 | . 2 . 2 . . . . 4 . . 1 9 . . 1 . . 6 . Database Lockouts 2 | . . . . . . . . . . . 1 . . . . . . 1 . Manual 131 | . 17 . 10 . . . 16 22 20 . 11 12 1 . 9 2 . 11 . Terminals 194 | . 20 . 15 . . . 15 41 13 . 10 47 2 . 9 6 . 16 . Fabricators 2 | . . . . . . . . . . . . . . . . . . 2 . Repair Stations 4 | . 2 . . . . . . 2 . . . . . . . . . . . Recycling Units 14 | . 2 . 1 . . . . . 7 . 2 1 . . . . . 1 . Scanalyzers 12 | . . . 3 . . . 1 . . . 5 . . . . . . 3 . Garrison Access 8 | . . . . . . . . 1 . . 2 . . . . 3 . 2 . Terminal Hacks 52 | . 6 . 3 . 2 . 3 11 . 1 3 18 1 . . 3 . 1 . Record 2 | . . . . . 2 . . . . . . . . . . . . . . Part Schematic 2 | . 1 . . . . . . . . . . 1 . . . . . . . Robot Schematic 1 | . 1 . . . . . . . . . . . . . . . . . . Robot Analysis 4 | . 2 . 1 . . . 1 . . . . . . . . . . . . Prototype ID Bank 4 | . 1 . . . . . . 2 . . . 1 . . . . . . . Open Door 13 | . . . . . . . . 3 . . 1 8 1 . . . . . . Branch Access Points 3 | . . . 1 . . . . . . . 1 . . . . 1 . . . Alert Level 2 | . . . . . . . . 1 . . . 1 . . . . . . . Unreport Threat 8 | . . . . . . . 2 3 . . . 2 . . . . . 1 . Maintenance Status 1 | . . . . . . . . . . . . 1 . . . . . . . Recall Investigation 1 | . . . . . . . . 1 . . . . . . . . . . . Hauler Manifests 3 | . . . . . . . . . . . 1 1 . . . 1 . . . Zone Layout 7 | . 1 . 1 . . . . 1 . . . 3 . . . 1 . . . Proto ID Catalog 1 | . . . . . . . . . . 1 . . . . . . . . . Fabricator Hacks 2 | . . . . . . . . . . . . . . . . . . 2 . Load Schematic 1 | . . . . . . . . . . . . . . . . . . 1 . Build 1 | . . . . . . . . . . . . . . . . . . 1 . Repair Station Hacks 3 | . 2 . . . . . . 1 . . . . . . . . . . . Scan Component 2 | . 1 . . . . . . 1 . . . . . . . . . . . Repair 1 | . 1 . . . . . . . . . . . . . . . . . . Recycling Unit Hacks . | . . . . . . . . . . . . . . . . . . . . Scanalyzer 8 | . . . 2 . . . 1 . . . 4 . . . . . . 1 . Retrieve Study 8 | . . . 2 . . . 1 . . . 4 . . . . . . 1 . Garrison Access Hacks 3 | . . . . . . . . 1 . . 1 . . . . 1 . . . Seal Access 3 | . . . . . . . . 1 . . 1 . . . . 1 . . . Unauthorized Hacks 50 | . 9 . 7 . . . 7 7 11 . 3 2 . . 2 1 . 1 . Terminals 38 | . 7 . 6 . . . 7 7 5 . 1 1 . . 2 1 . 1 . Botnet 11 | . 2 . 1 . . . 2 1 1 . 1 1 . . . 1 . 1 . Skim 25 | . 5 . 5 . . . 5 6 4 . . . . . . . . . . Sabotage 2 | . . . . . . . . . . . . . . . 2 . . . . Fabricators . | . . . . . . . . . . . . . . . . . . . . Repair Stations . | . . . . . . . . . . . . . . . . . . . . Recycling Units 12 | . 2 . 1 . . . . . 6 . 2 1 . . . . . . . Tunnel 9 | . 2 . 1 . . . . . 6 . . . . . . . . . . Fedlink 2 | . . . . . . . . . . . 2 . . . . . . . . Scrapoids 1 | . . . . . . . . . . . . 1 . . . . . . . Scanalyzers . | . . . . . . . . . . . . . . . . . . . . Garrison Access . | . . . . . . . . . . . . . . . . . . . . Data Cores Recovered 1 | . . . . . . . . . . . . 1 . . . . . . . Used . | . . . . . . . . . . . . . . . . . . . . Hacking Detections 69 | . 7 . 6 . . . 7 13 5 . 5 12 2 . 3 1 . 8 . Full Trace Events 5 | . . . . . . . . 3 . . . 1 . . . . . 1 . Feedback Events 1 | . . . . . . . . 1 . . . . . . . . . . . Corruption 1 | . . . . . . . . 1 . . . . . . . . . . . Feedback Blocked . | . . . . . . . . . . . . . . . . . . . . Robot Schematics Acquired 1 | . 1 . . . . . . . . . . . . . . . . . . Robots Built . | . . . . . . . . . . . . . . . . . . . . Authchips . | . . . . . . . . . . . . . . . . . . . . Time . | . . . . . . . . . . . . . . . . . . . . Total Robot Build Rating . | . . . . . . . . . . . . . . . . . . . . Part Schematics Acquired 2 | . 1 . . . . . . . . . . 1 . . . . . . . Parts Built 2 | . . . . . . . . . . . . . . . . . . 2 . Authchips . | . . . . . . . . . . . . . . . . . . . . Time 117 | . . . . . . . . . . . . . . . . . . 117 . Total Part Build Rating 14 | . . . . . . . . . . . . . . . . . . 14 . Part Studies Acquired 6 | . . . 2 . . . . . . . 4 . . . . . . . . Parts Repaired 1 | . 1 . . . . . . . . . . . . . . . . . . Time 13 | . 13 . . . . . . . . . . . . . . . . . . Parts Recycled . | . . . . . . . . . . . . . . . . . . . . Recycled Matter . | . . . . . . . . . . . . . . . . . . . . Retrieved Matter . | . . . . . . . . . . . . . . . . . . . . Retrieved Components . | . . . . . . . . . . . . . . . . . . . . Parts Scanalyzed . | . . . . . . . . . . . . . . . . . . . . Part Schematics Acquired . | . . . . . . . . . . . . . . . . . . . . Parts Damaged . | . . . . . . . . . . . . . . . . . . . . Bothacking | -11 -10 -10 -9 -9 -9 -8 -8 -8 -8 -8 -6 -6 -6 -6 -6 -5 -5 -5 -4 ------------ Run | Yrd Mat Min Mat Min Exi Min Mat Sto Rec Scr Fac Ext Cet Arc Hub Fac Was Fac Fac Used RIF Installer . | . . . . . . . . . . . . . . . . . . . . Robots Hacked 1 | . . . . . . . . . . . . . . . . . . . 1 Non-combat 1 | . . . . . . . . . . . . . . . . . . . 1 Combat . | . . . . . . . . . . . . . . . . . . . . Robot Hacks Applied 1 | . . . . . . . . . . . . . . . . . . . 1 find_chute 1 | . . . . . . . . . . . . . . . . . . . 1 Relay Couplers Released . | . . . . . . . . . . . . . . . . . . . . Fabnet Peak Effective % . | . . . . . . . . . . . . . . . . . . . . Robots Rewired 29 | . . . . . . . . . 23 . . 6 . . . . . . . Allies Hacked . | . . . . . . . . . . . . . . . . . . . . Hacks Repelled . | . . . . . . . . . . . . . . . . . . . . Allies | -11 -10 -10 -9 -9 -9 -8 -8 -8 -8 -8 -6 -6 -6 -6 -6 -5 -5 -5 -4 -------- Run | Yrd Mat Min Mat Min Exi Min Mat Sto Rec Scr Fac Ext Cet Arc Hub Fac Was Fac Fac Total Allies 89 | . . . . 3 . . . 10 23 6 . 23 5 . . . 19 . . Largest Group 29 | . . . . 3 3 2 . 10 29 29 16 16 13 12 9 6 22 17 . Highest-Rated Group 965 | . . . . 40 40 32 . 173 440 570 432 574 849 849 648 572 965 756 . Highest-Rated Ally 159 | . . . . 16 16 16 . 29 34 99 99 159 150 150 99 99 99 99 . Total Orders 19 | . . . . . . . . . 2 16 . . . . 1 . . . . STAY 4 | . . . . . . . . . 2 2 . . . . . . . . . FOLLOW 14 | . . . . . . . . . . 14 . . . . . . . . . GUARD 1 | . . . . . . . . . . . . . . . 1 . . . . Ally Attacks 824 | . . . . 15 . 8 . 19 28 . 165 163 20 25 104 5 116 156 . Total Damage 21613 | . . . . 175 . 92 . 162 352 . 3516 3825 438 869 3722 182 3280 5000 . Kills 123 | . . . . 2 . 2 . 1 3 . 27 25 2 4 17 2 6 32 . Allies Corrupted 1 | . . . . . . . . . . . 1 . . . . . . . . Allies Melted . | . . . . . . . . . . . . . . . . . . . . Intel | -11 -10 -10 -9 -9 -9 -8 -8 -8 -8 -8 -6 -6 -6 -6 -6 -5 -5 -5 -4 ------- Run | Yrd Mat Min Mat Min Exi Min Mat Sto Rec Scr Fac Ext Cet Arc Hub Fac Was Fac Fac Active Infowar (turns) 9858 | 124 1308 86 919 . . . 940 . . . 676 1082 285 484 376 244 393 2419 522 Optics 6481 | . . . . . . . . . . . 676 1082 285 484 376 244 393 2419 522 Sensors 1009 | . . . . . . . . . . . . . . . . . . 627 382 IFF 1025 | . . . . . . . . . . . . . . . . 83 . 942 . Structural 4306 | . . . . . . . . . . . 675 1082 285 484 376 244 393 767 . Seismic 3377 | 124 1308 86 919 . . . 940 . . . . . . . . . . . . Cloaking 429 | . . . . . . . . . . . . . . . . . . . 429 Robot Analysis Total 4 | . 2 . 1 . . . 1 . . . . . . . . . . . . Derelict Logs Recovered 4 | . . 1 . 3 . . . . . . . . . . . . . . . Drone Launches . | . . . . . . . . . . . . . . . . . . . . Drone Recoveries . | . . . . . . . . . . . . . . . . . . . . Exploration | -11 -10 -10 -9 -9 -9 -8 -8 -8 -8 -8 -6 -6 -6 -6 -6 -5 -5 -5 -4 ------------- Run | Yrd Mat Min Mat Min Exi Min Mat Sto Rec Scr Fac Ext Cet Arc Hub Fac Was Fac Fac Turns Passed 23623 | 233 1416 1094 1879 1361 261 1365 1806 1911 1541 4210 678 1082 285 484 376 244 393 2419 585 Spaces Moved 12002 | 104 649 621 697 634 130 600 680 764 571 2075 536 714 165 272 256 202 307 1561 464 Core 94 | 5 . . . . . . . . . . . . . . . . . . 89 Treads 6494 | 99 649 621 697 634 130 600 680 764 571 1049 . . . . . . . . . Legs 5414 | . . . . . . . . . . 1026 536 714 165 272 256 202 307 1561 375 Wheels . | . . . . . . . . . . . . . . . . . . . . Hover . | . . . . . . . . . . . . . . . . . . . . Flight . | . . . . . . . . . . . . . . . . . . . . Fastest Speed 50 | 50 160 160 200 200 200 200 200 200 210 120 105 106 111 101 101 101 106 101 50 Average Speed 162 | 154 160 160 201 200 200 206 202 203 210 193 106 106 127 125 102 107 106 115 96 Slowest Speed 240 | 160 160 160 240 200 200 208 240 210 210 210 175 212 177 177 202 212 106 234 181 Overloaded Moves 24 | . . . . . . . . . . . . . . . 2 1 . 21 . Propulsion Burnouts . | . . . . . . . . . . . . . . . . . . . . Robots Hopped . | . . . . . . . . . . . . . . . . . . . . Potential Cave-ins . | . . . . . . . . . . . . . . . . . . . . Cave-ins Triggered . | . . . . . . . . . . . . . . . . . . . . Exploration Rate (%) 67 | 5 94 95 80 99 48 99 75 93 96 83 20 85 73 93 39 8 89 53 16 Regions Visited 19 Branch Regions 11 Pre-discovered Areas 18 | . 5 . 3 1 1 . . 2 6 . . . . . . . . . . Known Exits Taken 8 | . . 1 1 . . 1 1 1 . . 1 . . . 1 . . 1 . Unknown Exits Taken 9 | 1 1 . . 1 1 . . . 1 1 . 1 1 1 . . . . . Scrap Searched 12 | . . 1 . 2 . 2 . . . 7 . . . . . . . . . Spaces Dug 152 | . . 8 1 . . . 13 20 . . 12 . . . 2 3 . 89 4 Terrain Destroyed 445 | . . 8 1 19 . . 16 20 . . 12 2 15 . 2 3 65 218 64 Melee 69 | . . . 1 . . . 13 3 . . 12 . . . 2 3 . 35 . Projectile 13 | . . . . . . . . . . . . 2 . . . . . . 11 AOE 363 | . . 8 . 19 . . 3 17 . . . . 15 . . . 65 183 53 Terrain Rammed . | . . . . . . . . . . . . . . . . . . . . Walls Destroyed . | . . . . . . . . . . . . . . . . . . . . Machines Disabled . | . . . . . . . . . . . . . . . . . . . . Actions | -11 -10 -10 -9 -9 -9 -8 -8 -8 -8 -8 -6 -6 -6 -6 -6 -5 -5 -5 -4 --------- Run | Yrd Mat Min Mat Min Exi Min Mat Sto Rec Scr Fac Ext Cet Arc Hub Fac Was Fac Fac Total 15041 | 139 925 677 996 674 133 664 909 982 895 2273 631 1013 226 394 358 224 363 1987 578 Wait 1462 | . 208 2 153 2 . 16 44 80 94 125 41 181 31 89 82 13 27 217 57 Move 11984 | 103 648 620 696 633 129 599 679 763 570 2074 535 713 164 271 255 202 306 1560 464 Hop . | . . . . . . . . . . . . . . . . . . . . Pick Up 131 | 7 5 10 18 1 2 1 14 7 . 24 11 6 4 2 1 1 2 10 5 Fast Attach 84 | 7 2 1 6 2 . . 11 12 . 3 3 . 1 4 3 1 5 16 7 Attach 47 | . 3 . 3 . . 2 4 1 . 7 4 3 2 1 . 1 1 8 7 Detach 11 | . . . 1 . . . . 1 2 3 . . . . . . 1 . 3 Swap 134 | . 2 7 11 4 . 11 26 14 . 1 4 6 5 4 . 2 5 30 2 Drop 167 | . 2 8 16 4 2 4 21 19 2 32 11 9 5 4 4 . 7 16 1 Fire 484 | 22 51 23 87 26 . 29 94 70 12 . . 4 14 . . . 9 22 21 Melee 223 | . . . 1 . . . 13 14 . 4 18 29 . 19 13 4 . 105 3 Ram 1 | . . . . . . . . . . . . . . . . . . 1 . Kick 5 | . . . . . . . . . . . . . . . . . . 2 3 Crush 23 | . 4 6 4 2 . 2 3 1 1 . . . . . . . . . . Escape Stasis 12 | . . . . . . . . . . . 3 4 . . . . . . 5 Rewire 272 | . . . . . . . . . 214 . . 58 . . . . . . . Trap 1 | . . . . . . . . . . . 1 . . . . . . . . Miscellaneous . | . . . . . . . . . . . . . . . . . . . . Route ------- -11/Scrapyard -10/Materials (discovered 5 exits: *Mat x3 / [*Min x2]) -10/Mines (discovered 2 exits: *Mat x2) -9/Materials (discovered 5 exits: *Mat x3 / *Min x2) -9/Mines (discovered 3 exits: *Mat x2 / *Exi) -9/Exiles -8/Mines (discovered 2 exits: *Mat x2) -8/Materials (discovered 4 exits: *Fac x3 / *Sto) -8/Storage (discovered 2 exits: *Fac / *Rec) -8/Recycling (discovered 2 exits: *Fac / *Scr) -8/Scraptown (discovered 2 exits: *Fac x2) -6/Factory (discovered 6 exits: *Fac x2 / Low x2 / *Ext x2) -6/Extension (discovered 2 exits: *Fac / *Cet) -6/Cetus (discovered 2 exits: *Fac / [*Arc]) -6/Archives (discovered 3 exits: *Fac / *Hub x2) -6/Hub_04(d) -5/Factory (discovered 2 exits: Upp x2) -5/Waste -5/Factory (discovered 3 exits: *Fac x3) -4/Factory History --------- Turn | Location | Event 4 | -11/Scrapyard | Discovered new exit (range 16) 234 | -11/Scrapyard | Entered Materials 311 | -10/Materials | Build established: Mutant 366 | -10/Materials | Discovered new exit (range 3) 375 | -10/Materials | Discovered new exit (range 6) 691 | -10/Materials | Discovered new exit (range 10) 943 | -10/Materials | Discovered new exit (range 10) 1058 | -10/Materials | Repaired Lgt. Treads 1251 | -10/Materials | Discovered new exit (range 4) 1333 | -10/Materials | Learned 2 Mines zone layouts 1437 | -10/Materials | Learned location of Subcaves (-10) 1474 | -10/Materials | Loaded intel: 1 repair station location 1518 | -10/Materials | Learned 4 Subcaves zone layouts 1546 | -10/Materials | Learned location of Recycling (-8) 1627 | -10/Materials | Learned 2 Mines zone layouts 1650 | -10/Materials | Entered Mines 1651 | -10/Mines | Identified exit to Materials 1652 | -10/Mines | Met a Derelict bent on vengeance 1675 | -10/Mines | Core integrity fell below 50% 1937 | -10/Mines | Found a hidden stash of uninstalled traps 2051 | -10/Mines | Learned Materials emergency access door positions 2269 | -10/Mines | A weapon hastily lodged in a ceiling crevice suddenly fell to the ground 2744 | -10/Mines | Entered Materials 2744 | -9/Materials | Evolved 2 slots: Propulsion x1, Utility x1 2920 | -9/Materials | Build established: Scavenger-Mutant 2947 | -9/Materials | Discovered new exit (range 8) 3345 | -9/Materials | Discovered new exit (range 12) 4220 | -9/Materials | Discovered new exit (range 11) 4342 | -9/Materials | Identified exit to Mines 4402 | -9/Materials | Identified exit to Materials 4453 | -9/Materials | Learned Materials emergency access door positions 4521 | -9/Materials | Loaded intel: 19 trap records 4540 | -9/Materials | Learned location of Zion (-7) 4569 | -9/Materials | Learned Storage stockpile data 4608 | -9/Materials | Loaded intel: 39 non-interactive machine locations 4623 | -9/Materials | Entered Mines 4830 | -9/Mines | Discovered exit to Materials (range 16) 4900 | -9/Mines | Assisted by bots powering up and referring to "LRC-V3" 5057 | -9/Mines | Assembled infested the area 5105 | -9/Mines | Met 8R-AWN 5186 | -9/Mines | Learned 8 Materials zone layouts 5329 | -9/Mines | Learned Materials stockpile data 5417 | -9/Mines | Learned Materials interactive machine intel 5508 | -9/Mines | Discovered new exit (range 5) 5984 | -9/Mines | Entered Exiles 5984 | -9/Exiles | Accompanied by 3 allies 6039 | -9/Exiles | Welcomed by 8R-AWN 6069 | -9/Exiles | Met EX-HEX 6221 | -9/Exiles | Discovered new exit (range 12) 6245 | -9/Exiles | Entered Mines 6245 | -8/Mines | Accompanied by 3 allies 6382 | -8/Mines | Core integrity fell below 50% 6391 | -8/Mines | Discovered exit to Materials (range 6) 6641 | -8/Mines | Discovered exit to Materials (range 5) 7610 | -8/Mines | Entered Materials 7610 | -8/Materials | Evolved 2 slots: Propulsion x1, Utility x1 7611 | -8/Materials | Identified exit to Storage 7612 | -8/Materials | Identified exit to Factory 7615 | -8/Materials | Loaded intel: 19 interactive machine locations 7794 | -8/Materials | Discovered exit to Factory (range 10) 8594 | -8/Materials | Lost 3 parts (1n2u) 9244 | -8/Materials | Core integrity fell below 50% 9416 | -8/Materials | Entered Storage 10503 | -8/Storage | Discovered exit to Factory (range 16) 10514 | -8/Storage | Learned Storage stockpile data 10549 | -8/Storage | Learned location of Extension (-6) 10575 | -8/Storage | Learned Factory recycling unit intel 10590 | -8/Storage | Learned location of 2 exits from Factory 10595 | -8/Storage | Learned location of 1 exit from Lower Caves 10608 | -8/Storage | Identified exit to Recycling 10661 | -8/Storage | Learned location of 1 exit from Storage 10856 | -8/Storage | Assisted by bots powering up and referring to "LRC-V3" 11143 | -8/Storage | Build established: Commander-Mutant 11309 | -8/Storage | Used back door to open Recycling access 11327 | -8/Storage | Entered Recycling 11327 | -8/Recycling | Accompanied by 10 allies 11736 | -8/Recycling | Discovered new exit (range 15) 11893 | -8/Recycling | Lost 3 allies 12715 | -8/Recycling | Scanned before Scraplab entrance 12746 | -8/Recycling | Entered Scraplab 12763 | -8/Recycling | Discovered new exit (range 2) 12868 | -8/Recycling | Entered Scraptown 12868 | -8/Scraptown | Accompanied by 24 allies 12868 | -8/Scraptown | System corruption cleaned by C-Scrubber 13123 | -8/Scraptown | Heard Great Nut preacher, LISTEN AND RECITE! 13162 | -8/Scraptown | Discovered new exit (range 11) 13318 | -8/Scraptown | Visited Cyclists 13351 | -8/Scraptown | Visited SPCMW 13635 | -8/Scraptown | Visited Comm Corps 13706 | -8/Scraptown | Visited Junk Repository 13788 | -8/Scraptown | Visited Fellowship of the Rings 13846 | -8/Scraptown | Visited UFD Registry 13846 | -8/Scraptown | Registered with UFD as "Novacell" 13916 | -8/Scraptown | Visited Science Guys 13951 | -8/Scraptown | Visited Science Testing Area 14084 | -8/Scraptown | Visited Chapter 10 14130 | -8/Scraptown | Visited DA-N13 Charitable Foundation 14138 | -8/Scraptown | Found DCF Scrap (29 items) 14187 | -8/Scraptown | Visited Supply Room 14214 | -8/Scraptown | Visited Scrapoid Pod Storage 14686 | -8/Scraptown | Visited Botcube Research 14799 | -8/Scraptown | Found Scrapoid Pod 14960 | -8/Scraptown | Scrapoid Pod released 08S05-D (x5) 15159 | -8/Scraptown | Found Lrg. Botcube 15306 | -8/Scraptown | Found Unknown Device 15306 | -8/Scraptown | Identified Scrap Suit 15434 | -8/Scraptown | Visited Infowarlord's Domain 15673 | -8/Scraptown | Found Scrap Suit 16502 | -8/Scraptown | Lrg. Botcube activated 16530 | -8/Scraptown | Lrg. Botcube completed mutation into wheeled form, armed with 4 guns. 16611 | -8/Scraptown | Found Exp. Terrain Scan Processor 16644 | -8/Scraptown | Visited Derelict Rescue Squad 16659 | -8/Scraptown | Found DRS Beacon 17014 | -8/Scraptown | Discovered new exit (range 3) 17078 | -8/Scraptown | Entered Factory 17078 | -6/Factory | Accompanied by 16 allies 17078 | -6/Factory | Evolved 4 slots: Power x1, Utility x3 17079 | -6/Factory | Identified exit to Factory 17079 | -6/Factory | Identified exit to Extension 17080 | -6/Factory | Loaded intel: 8 recycling unit locations 17109 | -6/Factory | Loaded intel: 8 recycling unit locations 17273 | -6/Factory | Discovered exit to Factory (range 13) 17326 | -6/Factory | Identified exit to Lower Caves 17484 | -6/Factory | Spotted B-75 Beast 17492 | -6/Factory | Central database locked down 17545 | -6/Factory | Allies destroyed B-75 Beast 17574 | -6/Factory | Lost 6 allies 17756 | -6/Factory | Entered Extension 17756 | -6/Extension | Accompanied by 1 ally 17812 | -6/Extension | Rescued a captive Derelict 17831 | -6/Extension | Scrapoids reinforcements arrived? 17909 | -6/Extension | Rescued a captive Derelict 17910 | -6/Extension | Rescued a captive Derelict 17928 | -6/Extension | Rescued a captive Derelict 18216 | -6/Extension | Attached CPS modules to Large Mutated Botcube. 18418 | -6/Extension | Spotted B-75 Beast 18438 | -6/Extension | Allies destroyed B-75 Beast 18441 | -6/Extension | Spotted B-75 Beast 18476 | -6/Extension | Allies destroyed B-75 Beast 18505 | -6/Extension | Lost 8 allies 18529 | -6/Extension | Rescued a captive Derelict 18552 | -6/Extension | Rescued A7 18556 | -6/Extension | Rescued a captive Derelict 18557 | -6/Extension | Rescued a captive Derelict 18700 | -6/Extension | Rescued a captive Derelict 18701 | -6/Extension | Rescued a captive Derelict 18749 | -6/Extension | Rescued a captive Derelict 18749 | -6/Extension | Rescued a captive Derelict 18769 | -6/Extension | Discovered exit to Factory (range 10) 18771 | -6/Extension | Discovered new exit (range 6) 18838 | -6/Extension | Entered Cetus 18838 | -6/Cetus | Accompanied by 13 allies (A7) 18843 | -6/Cetus | Acquired a Cetus Manufacturing Module code from A7 18852 | -6/Cetus | Spotted Cetus Guard 18852 | -6/Cetus | Spotted Cetus Guard 18852 | -6/Cetus | Spotted Cetus Guard 18852 | -6/Cetus | Spotted Cetus Guard 18866 | -6/Cetus | Allies destroyed Cetus Guard 18871 | -6/Cetus | Allies destroyed Cetus Guard 18872 | -6/Cetus | Destroyed Cetus Guard 18875 | -6/Cetus | Destroyed Cetus Guard 18900 | -6/Cetus | Lost 4 allies 18924 | -6/Cetus | Started Cetus Manufacturing Module 18934 | -6/Cetus | Escorted A7 to Cetus Mainframe 18949 | -6/Cetus | Manufactured an Enhanced Grunt 18950 | -6/Cetus | Discovered new exit (range 22) 18974 | -6/Cetus | Manufactured an Enhanced Grunt 18976 | -6/Cetus | Spotted Cetus Guard 18977 | -6/Cetus | Spotted Cetus Guard 18979 | -6/Cetus | Spotted Cetus Guard 18979 | -6/Cetus | Spotted Cetus Guard 18985 | -6/Cetus | Discovered exit to Factory (range 21) 18991 | -6/Cetus | Destroyed Cetus Guard 18991 | -6/Cetus | Destroyed Cetus Guard 18993 | -6/Cetus | Destroyed Cetus Guard 18999 | -6/Cetus | Manufactured an Enhanced Grunt 18999 | -6/Cetus | Destroyed Cetus Guard 19018 | -6/Cetus | Met Revision 17 19024 | -6/Cetus | Manufactured an Enhanced Grunt 19049 | -6/Cetus | Manufactured an Enhanced Grunt 19123 | -6/Cetus | Entered Archives 19123 | -6/Archives | Accompanied by 12 allies (A7) 19128 | -6/Archives | Received a hacking code to weaken MAIN.C 19145 | -6/Archives | Discovered new exit (range 22) 19164 | -6/Archives | Discovered new exit (range 22) 19168 | -6/Archives | Discovered exit to Factory (range 21) 19187 | -6/Archives | System corruption reached 10% 19433 | -6/Archives | Build established: Commander-Gladiator 19607 | -6/Archives | Entered Hub_04(d) 19607 | -6/Hub_04(d) | Accompanied by 9 allies 19673 | -6/Hub_04(d) | Lost 3 allies 19695 | -6/Hub_04(d) | Discovered exit to Factory (range 12) 19746 | -6/Hub_04(d) | Spotted B-75 Beast 19813 | -6/Hub_04(d) | Destroyed B-75 Beast 19883 | -6/Hub_04(d) | Network Hub disabled 19957 | -6/Hub_04(d) | First assault squad dispatched 19983 | -6/Hub_04(d) | Entered Factory 19983 | -5/Factory | Accompanied by 6 allies 19983 | -5/Factory | Evolved 2 slots: Propulsion x1, Weapon x1 20112 | -5/Factory | Identified exit to Upper Caves 20227 | -5/Factory | Sucked down chute 20227 | -5/Factory | Entered Waste 20237 | -5/Waste | Spotted C-40 Crusher 20246 | -5/Waste | Spotted C-40 Crusher 20267 | -5/Waste | Spotted C-40 Crusher 20274 | -5/Waste | Warlord forces began an assault 20281 | -5/Waste | Allies destroyed C-40 Crusher 20292 | -5/Waste | Allies destroyed C-40 Crusher 20293 | -5/Waste | Spotted C-40 Crusher 20296 | -5/Waste | Spotted C-40 Crusher 20303 | -5/Waste | Spotted C-40 Crusher 20309 | -5/Waste | Destroyed C-40 Crusher 20310 | -5/Waste | Allies destroyed C-40 Crusher 20317 | -5/Waste | 6 allies followed down the chute 20317 | -5/Waste | Allies destroyed C-40 Crusher 20345 | -5/Waste | Lost 8 allies 20379 | -5/Waste | Found Prototype Launcher 20379 | -5/Waste | Identified Hellfire Missile Launcher 20546 | -5/Waste | Discovered new exit (range 14) 20620 | -5/Waste | Entered Factory 20620 | -5/Factory | Accompanied by 17 allies 20985 | -5/Factory | Build established: Gladiator 21455 | -5/Factory | Discovered new exit (range 22) 21586 | -5/Factory | Identified exit to Factory 21632 | -5/Factory | Build established: Scavenger-Gladiator 21713 | -5/Factory | Central database locked down 22303 | -5/Factory | Discovered exit to Factory (range 22) 22550 | -5/Factory | Fabricated Nanoactuators? 22720 | -5/Factory | First assault squad dispatched 22771 | -5/Factory | Discovered exit to Factory (range 11) 22895 | -5/Factory | System corruption reached 10% 22997 | -5/Factory | Lost 8 parts (1p4n1u2w) 23039 | -5/Factory | Entered another Factory area 23039 | -4/Factory | Evolved 2 slots: Utility x1, Weapon x1 23224 | -4/Factory | Build established: Mutant 23289 | -4/Factory | First assault squad dispatched 23561 | -4/Factory | Released all parts (6) 23568 | -4/Factory | Core integrity fell below 50% 23591 | -4/Factory | Lost 11 parts (2p3n3u3w) 23608 | -4/Factory | Core integrity fell below 20% 23624 | -4/Factory | Destroyed by G-67 Veteran with Field Laser Last Messages --------------- 23618_ Neutrino Reactor explodes. 23618_ Enh. Gauss Cannon destroyed. 23618_ Destroyed Enh. Gauss Cannon. 23618_ Stasis Trap short circuited. 23618_ T-07 Excavator destroyed. 23618_ Chain reaction triggered in Corrupted Lgt. Ion Engine. 23618_ Neutrino Reactor explodes. 23618_ Chain reaction triggered in Corrupted Unknown Power Core. 23618_ Stasis Trap short circuited. 23618_ A bubble of rippling energy engulfs the area. 23620_ U-05 Engineer builds a Wall. 23620_ Field strength at 45. 23621_ Field strength at 34. 23622_ Field strength at 22. 23623_ Field strength at 16. 23624_ Field strength at 4. 23624_ Stasis field depleted. Map ----- +----------------------------------------------------+ | | | | | | | | | | | | | | | | | ????????????????????????????????????????????? | | ????????????????????????????????????????????? | | ??????????????????????????###############???? | | ??????????????????????????# #???? | | ??????????????????????????# #???? | | ??????????????????????????# """ #???? | | ??????????????????????????# """ #???? | | ??????????????????????????# """ #???? | | ??????????????????????????# #???? | | ??????????????????????????# """ #???? | | ??????????????????????????# ! """ #???? | | ??????????????????????????# """ ####???? | | ?????????????????????????## #??????? | | ?????????????????????????# #??????? | | ?????????????????????????# ##### #??????? | | ?????????????????????????# #???# #??????? | | ????????????????# ## ### #####+######?? | | ????????????????# = @ ## # | | ????????????????# !%| ## """"""""" # | | ????????????????# ## # | | ????????????? # """"""""" # | | ??????????? # # | | ???????????? # """"""""" ? | | ???????????? [ %+ # | | ???????????? [[ p# """""""""?? | | ????????????? p # ??? | | ????????????? ggu# """"""""??? | | ???????##+###################;;g; ??? | | ???????? #??????????## # """""""???? | | ???????? #???????????# # ????? | | ????????? [ #???????????# ########????? | | ???????? ] #???????????# #?####??????? | | ????????"" """ #???????????# #? """ #????? | | ????????"" """ #???????????# # ""R" #????? | | ?????# """ """ ############# # "" " #????? | | ?????# + + #????? | | ???????""" """ ############# # #????? | | ????????"" """ #???????????# #! / #????? | | ?????# """ """ #???????????# #?######????? | | ?????# #???????????# #???????????? | | ?????###########+##???????????# #???????????? | | ??????# # #???????###### #???????????? | +----------------------------------------------------+ Best States ------------- Heat Dissipation 53 Energy Generation 45 Energy Capacity 600 Matter Stores 300 Matter Capacity 300 Sight Range 22 Robot Scan Range 15 Terrain Scan Density 10 Cloak Strength 2 Corruption Containment 12 Armor Coverage 300 Melee Speed Boost 50 Evasion (%) 70 Targeting Accuracy 8 Melee Accuracy 12 Core Analysis 6 Recoil Reduction 4 Energy Filtering 50 Salvage Targeting 4 Authchip Count 1 Item Schematics ----------------- Hcp. Storage Unit | -10/Materials | Hacked Nanoactuators | -6/Extension | Hacked Robot Schematics ------------------ M-13 Machinist | -10/Materials | Hacked Fabricated ------------ Nanoactuators | x2 | -5/Factory Repaired ---------- Lgt. Treads | 59% | -10/Materials Studied --------- Lgt. Treads | -9/Materials | Hacked Rocket Launcher | -9/Materials | Hacked Imp. Carbon-fiber Leg | -6/Factory | Hacked Titanium Leg | -6/Factory | Hacked Lgt. Nuclear Core | -6/Factory | Hacked Imp. VSS Leg | -6/Factory | Hacked Alien Tech Used ----------------- None Achievements -------------- Martial Artist Challenges ------------ None Game ------ Seed FortressMetafieldJetlance Manual? 0 Play Time 02:05:50 Cumulative 177.8 hours Start 2025.10.25 @ 15:26:29 End 2025.10.25 @ 20:17:22 Sessions 3 Manual Loads 0 Difficulty Rogue Special Mode None Game No. 158 Rogue 158 Adventurer 0 Explorer 0 Win Type - Total 6 Types 5/0/1/0/0/0/0/0/0/0 Lore% 79 Gallery% 69 Achievement% 52 Wizard Run 0 Options --------- Layout 1 ASCII 0 Keyboard 1 Movement Arrows Keybinds 0 Fullscreen 1 Font 24/Smallcaps Map View 50x40 Zoom Use 0% Tactical HUD 1 Map Filters NONE Filters NONE Steam 1 RUN: d3095b0a-299b-4a7f-85af-2f8f21dbadc8